{"text_format":"1","workbook":"xlsx","n_sheets":3,"sheets":["Лист1","Лист2","Лист3"],"not_rendered":{"charts":0,"images":0,"macros":1,"external_links":0,"defined_names":0,"comments":0,"pivot_tables":0},"unopened":[],"bounds":{"document_bytes":16777216,"sheet_cells":100000,"rows_first":2000,"rows_last":500,"rows_between":2000,"halvings":0,"cell_chars":16384,"cell_head_chars":4096},"cells_cut":0,"cells_raw":0,"read":"whole","date_system":"1900"}

{"sheet":"Лист1","index":0,"n_rows":33,"n_cols":23,"rows_kept":33,"cut":false,"hidden":false,"merged":[]}
["Столбец4","Ф.И.О","Столбец5","Столбец1","дн.рожд","Столбец6","Столбец7","Столбец9","Столбец10","Столбец11","Столбец12","Столбец13","Столбец14","Столбец15","Столбец16","Столбец17","Столбец18","Столбец19","Столбец20","Столбец21","Столбец22","Столбец23","Столбец24"]
[1,"Иванов",null,null,"1985-07-30",null,null,null,null,null,null,null,null,null,null,null,null,null,null,null,null,null,{"$f":"SUM(IF(ISNUMBER(F2:V2),F2:V2,--(0&MID(F2:V2,SEARCH(\"/\",F2:V2&\"/\")+1,9999))))","v":0}]
[2,"Петров",null,null,"1985-07-30",null,null,null,null,null,null,null,null,null,null,null,null,null,null,null,null,null,{"$f":"SUM(IF(ISNUMBER(F3:V3),F3:V3,--(0&MID(F3:V3,SEARCH(\"/\",F3:V3&\"/\")+1,9999))))","v":0}]
[3,null,null,null,"1985-08-02",null,null,null,null,null,null,null,null,null,null,null,null,null,null,null,null,null,{"$f":"SUM(IF(ISNUMBER(F4:V4),F4:V4,--(0&MID(F4:V4,SEARCH(\"/\",F4:V4&\"/\")+1,9999))))","v":0}]
[4,null,null,null,"1985-07-31",null,null,null,null,null,null,null,null,null,null,null,null,null,null,null,null,null,{"$f":"SUM(IF(ISNUMBER(F5:V5),F5:V5,--(0&MID(F5:V5,SEARCH(\"/\",F5:V5&\"/\")+1,9999))))","v":0}]
[5,null,null,null,"1985-07-30",null,null,null,null,null,null,null,null,null,null,null,null,null,null,null,null,null,{"$f":"SUM(IF(ISNUMBER(F6:V6),F6:V6,--(0&MID(F6:V6,SEARCH(\"/\",F6:V6&\"/\")+1,9999))))","v":0}]
[6,null,null,null,"1985-08-04",null,null,null,null,null,null,null,null,null,null,null,null,null,null,null,null,null,{"$f":"SUM(IF(ISNUMBER(F7:V7),F7:V7,--(0&MID(F7:V7,SEARCH(\"/\",F7:V7&\"/\")+1,9999))))","v":0}]
[7,null,null,null,"1985-08-05",null,null,null,null,null,null,null,null,null,null,null,null,null,null,null,null,null,{"$f":"SUM(IF(ISNUMBER(F8:V8),F8:V8,--(0&MID(F8:V8,SEARCH(\"/\",F8:V8&\"/\")+1,9999))))","v":0}]
[8,null,null,null,"1900-01-10",null,null,null,null,null,null,null,null,null,null,null,null,null,null,null,null,null,{"$f":"SUM(IF(ISNUMBER(F9:V9),F9:V9,--(0&MID(F9:V9,SEARCH(\"/\",F9:V9&\"/\")+1,9999))))","v":0}]
[9,null,null,null,null,null,null,null,null,null,null,null,null,null,null,null,null,null,null,null,null,null,{"$f":"SUM(IF(ISNUMBER(F10:V10),F10:V10,--(0&MID(F10:V10,SEARCH(\"/\",F10:V10&\"/\")+1,9999))))","v":0}]
[10,null,null,null,10,null,null,null,null,null,null,null,null,null,null,null,null,null,null,null,null,null,{"$f":"SUM(IF(ISNUMBER(F11:V11),F11:V11,--(0&MID(F11:V11,SEARCH(\"/\",F11:V11&\"/\")+1,9999))))","v":0}]
[11,null,null,null,null,null,null,null,null,null,null,null,null,null,null,null,null,null,null,null,null,null,{"$f":"SUM(IF(ISNUMBER(F12:V12),F12:V12,--(0&MID(F12:V12,SEARCH(\"/\",F12:V12&\"/\")+1,9999))))","v":0}]
[12,null,null,null,10,null,null,null,null,null,null,null,null,null,null,null,null,null,null,null,null,null,{"$f":"SUM(IF(ISNUMBER(F13:V13),F13:V13,--(0&MID(F13:V13,SEARCH(\"/\",F13:V13&\"/\")+1,9999))))","v":0}]
[13,null,null,null,null,null,null,null,null,null,null,null,null,null,null,null,null,null,null,null,null,null,{"$f":"SUM(IF(ISNUMBER(F14:V14),F14:V14,--(0&MID(F14:V14,SEARCH(\"/\",F14:V14&\"/\")+1,9999))))","v":0}]
[14,null,null,null,null,null,null,null,null,null,null,null,null,null,null,null,null,null,null,null,null,null,{"$f":"SUM(IF(ISNUMBER(F15:V15),F15:V15,--(0&MID(F15:V15,SEARCH(\"/\",F15:V15&\"/\")+1,9999))))","v":0}]
[15,null,null,null,null,null,null,null,null,null,null,null,null,null,null,null,null,null,null,null,null,null,{"$f":"SUM(IF(ISNUMBER(F16:V16),F16:V16,--(0&MID(F16:V16,SEARCH(\"/\",F16:V16&\"/\")+1,9999))))","v":0}]
[16,null,null,null,null,null,null,null,null,null,null,null,null,null,null,null,null,null,null,null,null,null,{"$f":"SUM(IF(ISNUMBER(F17:V17),F17:V17,--(0&MID(F17:V17,SEARCH(\"/\",F17:V17&\"/\")+1,9999))))","v":0}]
[17,null,null,null,null,null,null,null,null,null,null,null,null,null,null,null,null,null,null,null,null,null,{"$f":"SUM(IF(ISNUMBER(F18:V18),F18:V18,--(0&MID(F18:V18,SEARCH(\"/\",F18:V18&\"/\")+1,9999))))","v":0}]
[18,null,null,null,null,null,null,null,null,null,null,null,null,null,null,null,null,null,null,null,null,null,{"$f":"SUM(IF(ISNUMBER(F19:V19),F19:V19,--(0&MID(F19:V19,SEARCH(\"/\",F19:V19&\"/\")+1,9999))))","v":0}]
[19,null,null,null,null,null,null,null,null,null,null,null,null,null,null,null,null,null,null,null,null,null,{"$f":"SUM(IF(ISNUMBER(F20:V20),F20:V20,--(0&MID(F20:V20,SEARCH(\"/\",F20:V20&\"/\")+1,9999))))","v":0}]
[20,null,null,null,null,null,null,null,null,null,null,null,null,null,null,null,null,null,null,null,null,null,{"$f":"SUM(IF(ISNUMBER(F21:V21),F21:V21,--(0&MID(F21:V21,SEARCH(\"/\",F21:V21&\"/\")+1,9999))))","v":0}]
[21,null,null,null,null,null,null,null,null,null,null,null,null,null,null,null,null,null,null,null,null,null,{"$f":"SUM(IF(ISNUMBER(F22:V22),F22:V22,--(0&MID(F22:V22,SEARCH(\"/\",F22:V22&\"/\")+1,9999))))","v":0}]
[22,null,null,null,null,null,null,null,null,null,null,null,null,null,null,null,null,null,null,null,null,null,{"$f":"SUM(IF(ISNUMBER(F23:V23),F23:V23,--(0&MID(F23:V23,SEARCH(\"/\",F23:V23&\"/\")+1,9999))))","v":0}]
[23,null,null,null,null,null,null,null,null,null,null,null,null,null,null,null,null,null,null,null,null,null,{"$f":"SUM(IF(ISNUMBER(F24:V24),F24:V24,--(0&MID(F24:V24,SEARCH(\"/\",F24:V24&\"/\")+1,9999))))","v":0}]
[24,null,null,null,null,null,null,null,null,null,null,null,null,null,null,null,null,null,null,null,null,null,{"$f":"SUM(IF(ISNUMBER(F25:V25),F25:V25,--(0&MID(F25:V25,SEARCH(\"/\",F25:V25&\"/\")+1,9999))))","v":0}]
[25,null,null,null,null,null,null,null,null,null,null,null,null,null,null,null,null,null,null,null,null,null,{"$f":"SUM(IF(ISNUMBER(F26:V26),F26:V26,--(0&MID(F26:V26,SEARCH(\"/\",F26:V26&\"/\")+1,9999))))","v":0}]
[26,null,null,null,null,null,null,null,null,null,null,null,null,null,null,null,null,null,null,null,null,null,{"$f":"SUM(IF(ISNUMBER(F27:V27),F27:V27,--(0&MID(F27:V27,SEARCH(\"/\",F27:V27&\"/\")+1,9999))))","v":0}]
[27,null,null,null,null,null,null,null,null,null,null,null,null,null,null,null,null,null,null,null,null,null,{"$f":"SUM(IF(ISNUMBER(F28:V28),F28:V28,--(0&MID(F28:V28,SEARCH(\"/\",F28:V28&\"/\")+1,9999))))","v":0}]
[28,null,null,null,null,null,null,null,null,null,null,null,null,null,null,null,null,null,null,null,null,null,{"$f":"SUM(IF(ISNUMBER(F29:V29),F29:V29,--(0&MID(F29:V29,SEARCH(\"/\",F29:V29&\"/\")+1,9999))))","v":0}]
[29,null,null,null,null,null,null,null,null,null,null,null,null,null,null,null,null,null,null,null,null,null,{"$f":"SUM(IF(ISNUMBER(F30:V30),F30:V30,--(0&MID(F30:V30,SEARCH(\"/\",F30:V30&\"/\")+1,9999))))","v":0}]
[30,null,null,null,null,null,null,null,null,null,null,null,null,null,null,null,null,null,null,null,null,null,{"$f":"SUM(IF(ISNUMBER(F31:V31),F31:V31,--(0&MID(F31:V31,SEARCH(\"/\",F31:V31&\"/\")+1,9999))))","v":0}]
[31,null,null,null,null,null,null,null,null,null,null,null,null,null,null,null,null,null,null,null,null,null,{"$f":"SUM(IF(ISNUMBER(F32:V32),F32:V32,--(0&MID(F32:V32,SEARCH(\"/\",F32:V32&\"/\")+1,9999))))","v":0}]
[32,null,null,null,null,null,null,null,null,null,null,null,null,null,null,null,null,null,null,null,null,null,{"$f":"SUM(IF(ISNUMBER(F33:V33),F33:V33,--(0&MID(F33:V33,SEARCH(\"/\",F33:V33&\"/\")+1,9999))))","v":0}]

{"sheet":"Лист2","index":1,"n_rows":0,"n_cols":0,"rows_kept":0,"cut":false,"hidden":false,"merged":[]}

{"sheet":"Лист3","index":2,"n_rows":0,"n_cols":0,"rows_kept":0,"cut":false,"hidden":false,"merged":[]}